bitfinex-derivatives/quotes_ETHF0:USTF0_20250326
["timestamp","ask_amount","ask_price","bid_price","bid_amount"]
[1743010381375,0.99644,2006.9,2006.8,0.0074625]
[1743010381577,2.40344,2006.9,2006.8,1.0039525]
[1743010381777,2.40344,2006.9,2006.8,0.0074625]
[1743010383573,0.99654,2006.7,2006.6,3.2078]
[1743010383970,0.99671,2006.4,2006.3,0.99669]
[1743010384371,2.49119,2006.9,2006.3,0.99669]
[1743010384372,1.07038,2007.1,2006.3,16.56]
[1743010384570,0.6536,2008.1,2007.0,3.2078]
[1743010384769,2.48944,2008.3,2008.0,4.20367]
[1743010384972,0.99592,2008.0,2007.9,0.99591]
[1743010385170,0.99592,2008.0,2007.9,4.20371]
[1743010385474,0.99588,2008.1,2008.0,0.99587]
[1743010385774,0.99589,2008.0,2007.9,4.2037]
[1743010386079,0.99588,2008.1,2008.0,0.99586]
[1743010386774,0.0074625,2008.2,2008.1,0.99584]
[1743010386973,1.0032525,2008.2,2008.1,0.99584]
[1743010387175,0.99584,2008.1,2008.0,2.32755]
[1743010387475,0.0074625,2008.2,2008.0,1.3317]
[1743010387775,0.99589,2008.0,2007.9,3.2078]
[1743010388178,0.99599,2007.8,2007.7,0.0074625]
[1743010388773,1.4252,2007.8,2007.7,1.0035025]
[1743010389077,0.99594,2008.0,2007.9,0.99591]
[1743010389381,2.42114,2008.0,2007.9,4.20371]
[1743010389582,2.42114,2008.0,2007.9,3.2078]
[1743010389779,2.42114,2008.0,2007.9,4.20374]
[1743010389980,1.4252,2008.0,2007.9,4.20374]
[1743010390278,2.42109,2008.0,2007.9,3.2078]
[1743010391279,0.99599,2007.8,2007.7,0.0074625]
[1743010391674,0.99599,2007.8,2007.7,2.3338725]
[1743010392177,0.99599,2007.8,2007.7,0.0074625]
[1743010392373,0.99599,2007.8,2007.3,3.2078]
[1743010392374,0.99619,2007.4,2007.3,3.2078]
[1743010392681,0.99629,2007.2,2007.1,51.2263]
[1743010392877,0.99629,2007.2,2007.1,4.2041]
[1743010393075,0.99629,2007.2,2007.1,4.20414]
[1743010393582,2.33104,2007.3,2007.2,0.99629]
[1743010393783,2.33104,2007.3,2007.2,2.32669]
[1743010394184,2.33104,2007.3,2007.2,1.3304]
[1743010394678,2.33104,2007.3,2007.2,2.32669]
[1743010395274,2.33104,2007.3,2007.2,1.3304]
[1743010395674,0.99629,2007.2,2007.1,4.2041]
[1743010395983,2.36599,2007.2,2007.1,4.2041]
[1743010396281,0.99628,2007.3,2007.2,0.99629]
[1743010396475,0.99628,2007.3,2007.2,2.35809]
[1743010397778,0.99628,2007.3,2007.2,1.3618]
[1743010398575,0.99628,2007.3,2007.2,2.35809]
[1743010398985,0.99628,2007.3,2007.2,1.3618]
[1743010400077,0.99629,2007.2,2007.1,3.2078]
[1743010400277,4.98121,2007.3,2006.9,0.0074625]
[1743010400478,0.99639,2007.0,2006.9,0.0074625]
[1743010402677,2.49125,2006.8,2006.5,1.70362]
[1743010402889,2.49125,2006.8,2006.6,3.2078]
[1743010403185,0.9966,2006.7,2006.6,0.99655]
[1743010403383,0.99654,2006.8,2006.7,0.9965]
[1743010403583,0.99654,2006.8,2006.7,1.702]
[1743010403985,3.1765125,2007.2,2006.7,0.7055]
[1743010404287,0.99642,2007.0,2006.9,4.20418]
[1743010404683,0.99642,2007.0,2006.9,3.2078]
[1743010404878,0.99642,2007.0,2006.9,4.20424]
[1743010405077,0.99642,2007.0,2006.9,3.2078]
[1743010406278,0.99642,2007.0,2006.9,4.20424]
[1743010406681,0.99642,2007.0,2006.9,3.2078]
[1743010407290,0.99649,2006.8,2006.7,0.7055]
[1743010407595,0.99654,2006.7,2006.6,0.99656]
[1743010407986,0.99659,2006.6,2006.5,4.8788725]
[1743010408585,2.41218,2006.7,2006.6,0.99659]
[1743010409395,0.99659,2006.6,2006.5,3.8822625]
[1743010409583,0.99659,2006.6,2006.5,3.2152625]
[1743010409983,2.34219,2006.6,2006.5,0.0074625]
[1743010410282,0.99674,2006.3,2006.2,3.2078]
[1743010410694,0.99683,2006.1,2006.0,0.68086]
[1743010411196,0.99683,2006.1,2006.0,0.01796]
[1743010411385,0.99683,2006.1,2006.0,1.01484]
[1743010411584,0.99683,2006.1,2006.0,0.01796]
[1743010411995,0.99683,2006.1,2006.0,1.01484]
[1743010412191,6.098,2006.1,2005.8,0.004975]
[1743010412393,0.99693,2005.9,2005.8,0.004975]
[1743010412786,0.99693,2005.9,2005.3,3.2078]
[1743010412787,0.99718,2005.4,2005.3,3.2078]
[1743010413896,0.99709,2005.7,2005.4,2.49287]
[1743010414098,0.99709,2005.7,2005.6,0.99703]
[1743010414283,0.99713,2005.5,2005.4,1.70655]
[1743010414492,0.99718,2005.4,2005.3,3.2078]
[1743010414791,2.49331,2005.2,2005.0,4.20516]
[1743010414989,2.35313,2005.1,2005.0,4.20518]
[1743010415190,6.14402,2005.4,2005.0,3.2078]
[1743010415391,1.294,2005.2,2005.0,3.2078]
[1743010415590,0.99733,2005.1,2005.0,3.2078]
[1743010416195,0.99733,2005.1,2005.0,4.20518]
[1743010416394,0.99733,2005.1,2005.0,3.2078]
[1743010416696,0.99733,2005.1,2005.0,4.20518]
[1743010416897,0.99733,2005.1,2005.0,5.52628]
[1743010417295,1.4004,2005.4,2005.0,4.5289]
[1743010417500,2.29123,2005.4,2005.3,0.99719]
[1743010417798,0.99709,2005.7,2005.6,0.99705]
[1743010417996,5.94402,2005.8,2005.7,0.99703]
[1743010418197,5.94402,2005.8,2005.7,1.3211]
[1743010418393,0.99703,2005.7,2005.6,3.2078]
[1743010418597,0.99723,2005.3,2005.2,3.2078]
[1743010418788,3.655,2005.4,2004.9,4.20521]
[1743010419104,0.99733,2005.2,2005.1,0.99729]
[1743010419600,2.35557,2005.3,2005.2,0.99728]
[1743010419800,4.65222,2005.4,2005.3,0.99723]
[1743010419994,4.65222,2005.4,2005.3,2.40643]
[1743010420404,4.65222,2005.4,2005.3,1.4092]
[1743010420603,4.65222,2005.4,2005.3,2.40643]
[1743010420900,0.99712,2005.6,2005.3,1.4092]
[1743010421098,0.99708,2005.6,2005.5,3.2078]
[1743010421699,0.99718,2005.4,2005.3,1.4092]
[1743010421899,0.99728,2005.2,2005.1,0.99729]
[1743010422705,0.99728,2005.2,2005.1,1.05455769]
[1743010422895,0.99728,2005.2,2005.1,2.46725769]
[1743010423098,0.99728,2005.2,2005.1,1.46996769]
[1743010423292,0.99728,2005.2,2005.1,0.05726769]
[1743010423694,0.99728,2005.2,2005.1,1.05457769]
[1743010423893,1.3089,2005.3,2005.2,0.99728]
[1743010424102,1.3089,2005.3,2005.2,5.61778]
[1743010424304,2.30617,2005.3,2005.2,2.40998]
[1743010424601,2.30617,2005.3,2005.2,4.6205]
[1743010424796,2.30617,2005.3,2005.2,1.46996769]
[1743010425198,2.30617,2005.3,2005.2,0.05726769]
[1743010426197,4.80617,2005.3,2005.2,0.05726769]
[1743010426394,2.30617,2005.3,2005.2,0.05726769]
[1743010427106,0.99715,2005.6,2005.3,2.49308]
[1743010427299,0.99717,2005.5,2005.4,4.6149]
[1743010427501,0.99717,2005.5,2005.2,0.05726769]
[1743010427502,0.99723,2005.3,2005.2,0.05726769]
[1743010427711,4.65823,2005.3,2005.2,0.05726769]
[1743010428203,6.02413,2005.3,2005.2,0.05726769]
[1743010433025,6.82722,2005.4,2005.3,0.99723]
[1743010433216,6.82718,2005.4,2005.3,1.3704]
[1743010433422,2.43228,2005.4,2005.3,1.3704]
[1743010433723,2.43228,2005.4,2005.3,1.42766769]
[1743010434219,2.43228,2005.4,2005.3,2.42489769]
[1743010434426,2.43228,2005.4,2005.3,1.42766769]
[1743010435025,2.43228,2005.4,2005.3,0.05726769]
[1743010435822,2.43228,2005.4,2004.7,4.8828]
[1743010435823,0.99748,2004.8,2004.7,4.8828]
[1743010436526,0.99748,2004.8,2004.7,3.8853]
[1743010436729,0.99748,2004.8,2004.7,0.6775]
[1743010437222,0.99748,2004.8,2004.7,2.0601]
[1743010437415,6.14371,2004.8,2004.1,3.2078]
[1743010437620,0.99781,2004.2,2004.1,4.5904]
[1743010438023,0.99781,2004.2,2004.1,5.58823]
[1743010438225,1.3528,2004.3,2003.8,0.99794]
[1743010438425,0.99798,2003.9,2003.8,0.99793]
[1743010438626,3.84749,2004.1,2003.9,0.99788]
[1743010438627,0.99792,2004.0,2003.9,0.99788]
[1743010438827,1.3528,2004.1,2003.8,3.18453]
[1743010438828,0.99784,2004.1,2004.0,0.99788]
[1743010439021,0.99784,2004.1,2004.0,4.20568]
[1743010439224,0.99784,2004.1,2004.0,3.2078]
[1743010439526,0.99793,2003.9,2003.8,0.6896]
[1743010439723,0.99798,2003.8,2003.7,44.08777628]
[1743010440032,2.49462,2004.1,2003.8,0.99793]
[1743010440033,0.99797,2003.9,2003.8,0.99793]
[1743010440330,0.0074813,2004.0,2003.9,0.99793]
[1743010440834,0.99773,2004.4,2004.3,0.99768]
[1743010441027,0.99773,2004.4,2004.3,3.2078]
[1743010441235,2.41953,2004.4,2004.3,3.2078]
[1743010441429,2.41953,2004.4,2004.3,44.0078]
[1743010441637,0.99788,2004.1,2004.0,0.99787]
[1743010442135,0.99788,2004.1,2004.0,41.79787]
[1743010442336,0.99788,2004.1,2004.0,40.8]
[1743010442828,0.99788,2004.1,2004.0,41.79788]
[1743010443023,1.0052513,2004.3,2004.2,0.99778]
[1743010443227,0.0074813,2004.3,2004.2,4.20558]
[1743010443634,1.0052113,2004.3,2004.2,4.20558]
[1743010443833,1.0052113,2004.3,2004.2,45.00558]
[1743010444231,0.0074813,2004.3,2004.2,45.00558]
[1743010444440,0.99756,2004.7,2004.6,0.99758]
[1743010444628,0.99756,2004.7,2004.6,4.20538]
[1743010445535,0.99751,2004.8,2004.7,0.99748]
[1743010448334,0.99753,2004.7,2004.6,4.20538]
[1743010449338,0.99773,2004.3,2004.2,3.2078]
[1743010449645,0.99773,2004.3,2004.2,4.20558]
[1743010450142,0.99773,2004.3,2004.2,3.2078]
[1743010451041,0.99783,2004.1,2004.0,0.6548]
[1743010451239,0.99788,2004.0,2003.9,3.2078]
[1743010451438,0.99793,2003.9,2003.8,1.7242313]
[1743010451837,1.4012,2004.0,2003.9,0.99793]
[1743010451838,2.39913,2004.0,2003.9,0.99793]
[1743010452043,0.99793,2004.0,2003.9,0.99793]
[1743010452247,2.49412,2004.5,2004.0,2.49469]
[1743010452541,0.99783,2004.1,2004.0,4.20565]
[1743010452942,12.21851,2004.6,2004.0,4.20565]
[1743010452943,0.99781,2004.2,2004.1,0.99783]
[1743010455842,4.9948113,2004.9,2004.2,2.49446]
[1743010456045,3.49172,2004.6,2004.3,3.921]
[1743010456242,0.99768,2004.4,2004.3,4.91866]
[1743010456837,0.99767,2004.5,2004.4,0.99763]
[1743010457146,0.99768,2004.4,2004.3,4.9187]
[1743010457641,0.99768,2004.4,2004.3,6.2665]
[1743010461447,2.43067,2004.5,2004.4,0.99768]
[1743010461745,0.99767,2004.5,2004.4,2.32998]
[1743010462051,0.99753,2004.8,2004.7,0.99748]
[1743010462251,2.32783,2004.8,2004.7,0.99748]
[1743010462550,2.32783,2004.8,2004.7,4.20533]
[1743010462749,2.32783,2004.8,2004.7,3.2078]
[1743010463140,0.99753,2004.7,2004.6,1.3323]
[1743010463337,2.32783,2004.7,2004.6,1.3323]
[1743010463539,2.32783,2004.7,2004.4,3.2078]
[1743010463540,0.99763,2004.5,2004.4,3.2078]
[1743010463746,0.99763,2004.5,2004.4,4.5401]
[1743010463944,0.99763,2004.5,2004.4,5.53778]
[1743010464344,0.99763,2004.5,2004.4,4.5401]
[1743010464545,0.99763,2004.5,2004.4,5.53778]
[1743010464946,0.99763,2004.5,2004.4,4.5401]
[1743010465147,0.99761,2004.6,2004.5,0.99758]
[1743010465346,0.99757,2004.7,2004.6,0.99753]
[1743010465743,0.0074813,2004.9,2004.6,2.49394]
[1743010465952,0.0074813,2004.9,2004.8,4.20528]
[1743010466342,0.0074813,2004.9,2004.8,8.57708]
[1743010466950,1.0049113,2004.9,2004.8,4.89808]
[1743010467150,0.0074813,2004.9,2004.7,2.37342]
[1743010467350,2.36308,2004.8,2004.7,1.3759]
[1743010467545,0.99758,2004.6,2004.5,7.88239]
[1743010468655,0.99758,2004.6,2004.5,9.25649]
[1743010469660,0.99758,2004.6,2004.5,4.5819]
[1743010469855,0.99788,2004.0,2003.9,4.20569]
[1743010470051,0.99788,2004.0,2003.9,5.63933]
[1743010470553,0.707,2004.5,2004.1,2.49458]
[1743010470762,3.674,2004.6,2004.1,2.49458]
[1743010470763,0.99764,2004.6,2004.5,0.9976]
[1743010471060,0.99768,2004.5,2004.4,0.99764]
[1743010474462,0.99767,2004.5,2004.4,1.71062]
[1743010474958,0.99767,2004.5,2004.4,0.713]
[1743010475159,0.99767,2004.5,2004.4,1.71068]
[1743010475454,0.0074813,2004.9,2004.8,0.99748]
[1743010475658,0.0074813,2004.9,2004.8,4.20528]
[1743010476061,0.0074813,2004.9,2004.8,45.00528]
[1743010476356,0.0074813,2004.9,2004.8,4.20528]
[1743010476559,1.0049113,2004.9,2004.8,3.2078]
[1743010476754,1.0049113,2004.9,2004.8,40.8]
[1743010476955,1.0049113,2004.9,2004.8,44.0078]
[1743010477155,2.4402113,2004.9,2004.8,44.0078]
[1743010477466,2.4402113,2004.9,2004.8,45.00528]
[1743010477658,0.0074813,2004.9,2004.8,45.00528]
[1743010478162,4.71064,2005.3,2005.2,0.99728]
[1743010478361,5.14868,2005.3,2005.2,4.20508]
[1743010478654,5.14868,2005.3,2005.2,4.22101843]
[1743010478655,3.71338,2005.3,2005.2,4.22101843]
[1743010478854,2.1489,2005.6,2005.2,3.22373843]
[1743010479054,10.1782,2005.9,2005.6,0.99707]
[1743010479055,4.3482,2005.9,2005.6,0.99707]
[1743010479262,1.4014,2005.8,2005.5,3.2078]
[1743010479461,1.4014,2005.8,2005.6,0.01593843]
[1743010479764,2.39841,2005.8,2005.6,0.01593843]
[1743010479955,0.99703,2005.7,2005.6,0.01593843]
[1743010480156,2.39843,2005.7,2005.6,0.01593843]
[1743010480853,1.4014,2005.7,2005.6,1.01301843]
[1743010481054,2.39843,2005.7,2005.6,1.01301843]
[1743010481262,2.39843,2005.7,2005.6,0.01593843]
[1743010482361,2.39843,2005.7,2005.6,1.01301843]
[1743010482556,2.39843,2005.7,2005.6,0.01593843]
[1743010485059,1.4014,2005.7,2005.6,1.01301843]
[1743010485262,0.0074813,2006.0,2005.9,0.99693]
[1743010485464,0.0074813,2006.0,2005.9,4.22066843]
[1743010486166,0.0074813,2006.0,2005.9,7.89366843]
[1743010487357,0.0074813,2006.0,2005.9,8.58336843]
[1743010488566,1.4427813,2006.0,2005.9,8.58336843]
[1743010488865,0.0074813,2006.0,2005.9,8.58336843]
[1743010490262,1.0043613,2006.0,2005.9,0.01593843]
[1743010490467,0.99703,2005.7,2005.6,3.2078]
[1743010490863,0.99703,2005.7,2005.6,4.20488]
[1743010491163,0.99703,2005.7,2005.6,3.2078]
[1743010491571,0.99703,2005.7,2005.5,0.0074813]
[1743010491572,0.99708,2005.6,2005.5,0.0074813]
[1743010491772,2.29188,2005.6,2005.5,0.0074813]
[1743010492068,0.99741,2005.0,2004.9,0.99742]
[1743010492469,0.99737,2005.1,2005.0,0.99736]
[1743010492666,2.29211,2005.2,2005.1,0.99733]
[1743010492868,1.2948,2005.2,2005.1,0.99733]
[1743010493471,2.29208,2005.2,2005.1,0.99733]
[1743010494768,0.99733,2005.1,2005.0,2.38014]
[1743010494970,2.39443,2005.1,2005.0,2.38014]
[1743010495275,0.9971,2005.6,2005.5,0.9971]
[1743010495458,2.3942,2005.6,2005.5,4.2049]
[1743010495877,2.3942,2005.6,2005.5,41.7971]
[1743010496062,2.3942,2005.6,2005.5,45.0049]
[1743010496063,1.3971,2005.6,2005.5,45.0049]
[1743010496263,1.67528,2005.9,2005.8,0.99698]
[1743010496465,0.0074813,2006.0,2005.9,0.99693]
[1743010496661,0.6783,2006.5,2006.4,0.99669]
[1743010496873,0.6783,2006.5,2006.4,4.20449]
[1743010497572,0.99693,2005.9,2005.8,3.2078]
[1743010498676,0.99693,2005.9,2005.8,4.20478]
[1743010498876,0.99693,2005.9,2005.8,3.2078]
[1743010499065,0.99693,2005.9,2005.8,4.20478]
[1743010499267,0.99693,2005.9,2005.8,3.2078]
[1743010499467,0.99703,2005.7,2005.6,1.3806813]
[1743010499668,0.99703,2005.7,2005.6,2.3777313]
[1743010500277,2.42902,2005.8,2005.7,0.99703]
[1743010500477,2.42898,2005.8,2005.7,0.99703]
[1743010500676,0.99703,2005.7,2005.6,2.3777413]
[1743010500877,2.30683,2005.7,2005.6,1.3806813]
[1743010501371,2.30683,2005.7,2005.6,2.3777613]
[1743010501572,2.30683,2005.7,2005.6,1.3806813]
[1743010501877,2.30683,2005.7,2005.6,0.0074813]
[1743010502177,4.80683,2005.7,2005.6,0.0074813]
[1743010502382,0.99723,2005.3,2005.2,3.2078]
[1743010503377,2.30703,2005.3,2005.2,3.2078]
[1743010503682,2.30703,2005.3,2005.0,0.0074813]
[1743010503683,0.99733,2005.1,2005.0,0.0074813]
[1743010504181,0.99733,2005.1,2005.0,3.2152813]
[1743010504575,1.3098,2005.3,2005.0,3.2152813]
[1743010504780,0.99733,2005.1,2005.0,3.2152813]
[1743010505079,0.99733,2005.1,2005.0,0.0074813]
[1743010505581,0.99733,2005.1,2005.0,1.0048613]
[1743010505775,0.99733,2005.1,2005.0,4.2126613]
[1743010505976,1.3098,2005.3,2005.0,3.2152813]
[1743010506280,0.99722,2005.4,2005.3,0.99721]
[1743010506480,0.99728,2005.3,2005.2,0.99726]
[1743010506683,0.99722,2005.4,2005.3,0.99721]
[1743010506875,2.29688,2005.4,2005.3,3.2078]
[1743010507071,0.99728,2005.3,2005.1,1.2989]
[1743010507276,0.99728,2005.2,2005.1,2.29621]
[1743010508975,0.99733,2005.1,2005.0,0.0074813]
[1743010509172,2.29703,2005.1,2005.0,0.0074813]
[1743010509370,2.29703,2005.1,2004.6,5.50426]
[1743010509371,0.99748,2004.8,2004.6,5.50426]
[1743010509573,1.3647,2005.4,2004.6,9.49448]
[1743010509779,1.3631,2005.3,2005.2,4.20508]
[1743010509978,1.3631,2005.3,2005.2,45.00508]
[1743010510184,0.9972,2005.4,2005.3,0.99719]
[1743010510385,0.9972,2005.4,2005.3,2.35039]
[1743010510585,2.36028,2005.5,2005.4,0.99718]
[1743010510791,0.99718,2005.4,2005.3,1.3532]
[1743010511085,2.36028,2005.4,2005.3,1.3532]
[1743010512290,2.36028,2005.4,2005.3,2.35043]
[1743010512679,2.36028,2005.4,2005.3,1.3532]
[1743010512883,0.0074813,2005.6,2005.3,1.3532]
[1743010513185,0.99718,2005.5,2005.4,0.99715]
[1743010513381,0.99718,2005.5,2005.3,2.35039]
[1743010513382,0.99718,2005.4,2005.3,2.35039]
[1743010513580,0.99723,2005.3,2005.2,3.2078]
[1743010513781,0.99728,2005.2,2005.1,0.0074813]
[1743010514076,0.99728,2005.2,2005.1,1.0048113]
[1743010514280,0.99722,2005.4,2005.3,0.99718]
[1743010514586,2.49177,2006.4,2006.1,0.99678]
[1743010514785,2.49172,2006.4,2005.9,3.2078]
[1743010514991,0.99688,2006.0,2005.9,4.20473]
[1743010515189,0.99686,2006.1,2006.0,0.99682]
[1743010515389,1.3713,2006.1,2006.0,0.99682]
[1743010515591,0.99677,2006.3,2006.2,0.99673]
[1743010515886,1.0042513,2006.3,2006.2,4.20453]
[1743010516282,1.0042513,2006.3,2006.2,4.6244]
[1743010516483,0.99688,2006.0,2005.9,2.41351]
[1743010516687,0.99688,2006.0,2005.9,2.41353]
[1743010516982,0.99688,2006.0,2005.9,4.6244]
[1743010517182,0.99688,2006.0,2005.9,5.62133]
[1743010517395,0.99688,2006.0,2005.9,2.41353]
[1743010517688,2.29598,2006.0,2005.9,5.62133]
[1743010517886,2.29598,2006.0,2005.9,4.6244]
[1743010518090,2.29598,2006.0,2005.8,0.0074813]
[1743010518091,0.99693,2005.9,2005.8,0.0074813]
[1743010518303,3.00503,2005.9,2005.8,0.0074813]
[1743010519487,13.18394,2005.9,2005.3,2.8161]
[1743010519696,2.49247,2005.8,2005.3,2.8161]
[1743010519888,0.99717,2005.5,2005.4,2.38394]
[1743010520096,1.3815,2005.7,2005.5,0.99708]
[1743010520097,0.99711,2005.6,2005.5,0.99708]
[1743010520288,0.99711,2005.6,2005.5,4.20488]
[1743010520489,0.99713,2005.5,2005.4,1.3868]
[1743010521091,2.37863,2005.5,2005.4,1.3868]
[1743010521290,2.37863,2005.5,2005.4,2.38398]
[1743010521796,0.99712,2005.6,2005.5,0.9971]
[1743010521992,0.99712,2005.6,2005.5,2.3708]
[1743010522290,0.99718,2005.4,2005.3,1.4069813]
[1743010522499,0.99718,2005.4,2005.3,1.3811813]
[1743010522895,0.99718,2005.4,2005.3,0.0074813]
[1743010523087,1.70318,2005.4,2005.3,0.0074813]
[1743010523284,0.99712,2005.6,2005.5,0.99709]
[1743010523485,0.99712,2005.6,2005.5,4.20489]
[1743010523897,0.99712,2005.6,2005.5,5.57859]
[1743010524294,0.99712,2005.6,2005.5,4.5815]
[1743010524501,0.99712,2005.6,2005.5,3.2078]
[1743010524698,0.99718,2005.4,2005.3,0.0074813]
[1743010525095,0.99751,2004.8,2004.7,0.99748]
[1743010525294,2.49322,2005.2,2004.9,0.99739]
[1743010525590,0.99741,2005.0,2004.9,0.99739]
[1743010525905,2.29156,2005.1,2005.0,0.99738]
[1743010526099,6.9068,2005.4,2005.0,1.3095]
[1743010526100,3.2078,2005.4,2005.0,1.3095]
[1743010526305,3.2078,2005.4,2005.3,3.2078]
[1743010526306,0.9972,2005.4,2005.3,3.2078]
[1743010526494,0.99733,2005.1,2005.0,5.51467]
[1743010526797,0.99733,2005.1,2005.0,2.30687]
[1743010527100,0.9973,2005.2,2005.1,0.99726]
[1743010527608,1.0046913,2005.4,2005.3,0.99723]
[1743010527899,1.0046913,2005.4,2005.2,2.99776]
[1743010527900,0.99728,2005.3,2005.2,2.99776]
[1743010529305,2.3715013,2005.4,2005.3,0.99723]
[1743010529505,0.0074813,2005.4,2005.3,0.99723]
[1743010530301,0.0074813,2005.4,2005.3,4.78023]
[1743010531398,0.997,2005.8,2005.7,0.99703]
[1743010531596,3.85984,2006.2,2006.1,0.9968]
[1743010531597,0.99683,2006.2,2006.1,0.9968]
[1743010531804,0.99688,2006.0,2005.9,3.2078]
[1743010531998,0.99703,2005.7,2005.6,5.8531]
[1743010532197,0.99703,2005.7,2005.6,5.43785]
[1743010532601,0.99708,2005.6,2005.5,3.2078]
[1743010532902,0.99713,2005.5,2005.4,0.0074813]
[1743010533103,0.99713,2005.6,2005.5,0.99709]
[1743010533316,0.99707,2005.7,2005.6,0.99704]
[1743010534015,0.99708,2005.7,2005.6,0.99705]
[1743010534917,0.99708,2005.6,2005.5,4.20489]
[1743010535917,2.34412,2005.8,2005.7,0.99703]
[1743010536219,0.0074813,2005.9,2005.5,3.2078]
[1743010536220,0.0074813,2005.9,2005.8,0.99698]
[1743010536423,0.0074813,2005.9,2005.8,4.20478]
[1743010537023,0.0074813,2005.9,2005.8,4.88628]
[1743010537323,2.33087,2006.3,2006.2,0.99678]
[1743010537622,0.99685,2006.2,2006.1,4.20461]
[1743010537818,1.3662,2006.7,2006.3,2.49182]
[1743010538124,0.99657,2006.7,2006.6,0.99659]
[1743010538421,2.3444513,2006.7,2006.6,0.99659]
[1743010538824,0.99659,2006.6,2006.5,4.2044]
[1743010539020,0.99659,2006.6,2006.4,0.0074813]
[1743010539021,0.99664,2006.5,2006.4,0.0074813]
[1743010539417,2.39304,2006.5,2006.4,0.0074813]
[1743010542322,0.99664,2006.5,2006.4,1.0041213]
[1743010542726,0.99664,2006.5,2006.4,0.0074813]
[1743010542927,2.31524,2006.5,2006.4,0.0074813]
[1743010543122,2.31524,2006.5,2006.4,1.0041713]
[1743010543727,0.99663,2006.6,2006.5,0.99659]
[1743010544025,0.99663,2006.6,2006.5,4.20439]
[1743010544521,2.4074713,2006.7,2006.6,0.99659]
[1743010544721,1.4108813,2006.7,2006.6,0.99659]
[1743010544923,0.0074813,2006.7,2006.6,0.99659]
[1743010545536,1.0040213,2006.7,2006.6,0.99659]
[1743010546323,0.99659,2006.6,2006.5,4.20439]
[1743010546527,0.99659,2006.6,2006.4,0.0074813]
[1743010546528,0.99664,2006.5,2006.4,1.0041713]
[1743010547619,0.99664,2006.5,2006.4,2.3509713]
[1743010547823,1.4286,2006.6,2006.5,0.99664]
[1743010548023,2.42519,2006.6,2006.5,5.55124]
[1743010548431,1.0040413,2006.7,2006.6,0.99659]
[1743010548624,0.0074813,2006.7,2006.6,0.99659]
[1743010548823,1.0040213,2006.7,2006.6,0.99659]
[1743010549131,0.0074813,2006.7,2006.6,0.99659]
[1743010549332,1.0040213,2006.7,2006.6,0.99659]
[1743010550024,0.0074813,2006.7,2006.6,0.99659]
[1743010552321,1.3644,2007.0,2006.9,0.99644]
[1743010552624,1.373,2007.4,2006.9,0.99644]
[1743010552625,0.99635,2007.2,2007.1,0.99629]
[1743010552824,1.4315,2007.3,2006.9,3.2078]
[1743010553020,0.99639,2007.0,2006.9,3.2078]
[1743010553937,0.99639,2007.0,2006.9,0.99644]
[1743010554130,0.99644,2006.9,2006.8,2.37264]
[1743010554336,2.42794,2006.9,2006.8,2.37264]
[1743010555221,2.42794,2006.9,2006.8,1.3762]
[1743010555422,0.99654,2006.7,2006.6,0.99659]
[1743010555732,0.99654,2006.7,2006.6,3.2078]
[1743010556032,0.99654,2006.7,2006.6,4.20439]
[1743010556624,0.99654,2006.7,2006.6,5.55939]
[1743010558634,3.2078,2007.1,2007.0,0.99639]
[1743010558840,0.99644,2007.0,2006.9,4.2042]
[1743010559036,2.42474,2007.0,2006.9,5.5061]
[1743010560231,2.42474,2007.0,2006.9,3.2078]
[1743010560432,0.99654,2006.7,2006.6,3.2078]
[1743010560732,0.99654,2006.7,2006.6,4.20439]
[1743010561135,0.99659,2006.6,2006.5,1.3019]
[1743010561635,0.99664,2006.5,2006.4,0.0074813]
[1743010561830,1.65784,2006.5,2006.4,0.0074813]
[1743010562436,2.31234,2006.5,2006.4,0.0074813]
[1743010563231,2.31234,2006.5,2006.4,1.0041713]
[1743010563537,0.9966,2006.7,2006.6,0.99654]
[1743010563735,2.3038,2006.7,2006.6,0.99654]
[1743010564434,2.3038,2006.7,2006.6,2.39854]
[1743010564833,0.99653,2006.8,2006.7,0.99645]
[1743010565132,2.39371,2007.0,2006.9,0.99644]
[1743010565633,1.0037813,2007.2,2007.1,0.99634]
[1743010565831,2.4010813,2007.2,2007.1,0.99634]
[1743010566037,1.4047813,2007.2,2007.1,0.99634]
[1743010566240,0.0074813,2007.2,2007.1,0.99634]
[1743010568238,3.13836,2007.7,2007.6,0.99609]
[1743010568739,3.13836,2007.7,2007.6,4.20389]
[1743010569038,1.4269,2007.7,2007.6,4.20389]
[1743010569241,0.996,2007.8,2007.7,0.99604]
[1743010569536,0.996,2007.8,2007.7,2.35764]
[1743010569838,2.4303213,2007.9,2007.8,0.99599]
[1743010570336,2.4303213,2007.9,2007.6,6.41496382]
[1743010570532,2.4303213,2007.9,2007.8,0.99599]
[1743010571237,0.99604,2007.8,2007.7,0.99599]
[1743010571536,3.89851,2007.8,2007.4,1.0036213]
[1743010571738,0.99614,2007.5,2007.4,1.0036213]
[1743010572741,2.40462,2007.6,2007.5,0.99614]
[1743010573243,5.61242,2007.6,2007.5,0.99614]
[1743010574038,1.4085,2007.6,2007.5,0.99614]
[1743010574442,1.0034513,2007.9,2007.8,0.99599]
[1743010575444,1.0034513,2007.9,2007.6,2.49013]
[1743010575445,0.0074813,2007.9,2007.6,2.49013]
[1743010575639,1.4341813,2007.9,2007.8,0.99599]
[1743010576139,1.4341813,2007.9,2007.7,5.234]
[1743010576140,2.4301213,2007.9,2007.7,1.6637]
[1743010576340,2.4301213,2007.9,2007.6,3.84873]
[1743010576640,1.4341813,2007.9,2007.8,0.99599]
[1743010576947,2.4301213,2007.9,2007.8,0.99599]
[1743010577142,1.4341813,2007.9,2007.8,0.99599]